[Event "Titled Tuesday Blitz July 26 Late 2022"]
[White "Carrasco Miranda, Andres"]
[Black "Melikhov, Evgeny V."]
[WhiteFideId "3405990"]
[BlackFideId "4122046"]
[WhiteElo "2177"]
[BlackElo "1995"]
[Result "1-0"]
[Round "11"]
[TimeControl "180+1"]
[Date "2022.07.27"]
[WhiteClock "0:00:07"]
[BlackClock "0:00:12"]

1. d4 {[%clk 0:02:07]}  Nf6 {[%clk 0:02:58]} 2. c3 {[%clk 0:02:07]}  d5 {[%clk 0:02:57]} 3. Nf3 {[%clk 0:02:07]}  c5 {[%clk 0:02:56]} 4. g3 {[%clk 0:02:08]}  e6 {[%clk 0:02:52]} 5. Bg2 {[%clk 0:02:07]}  Nc6 {[%clk 0:02:52]} 6. O-O {[%clk 0:02:08]}  Be7 {[%clk 0:02:52]} 7. dxc5 {[%clk 0:02:05]}  Bxc5 {[%clk 0:02:51]} 8. c4 {[%clk 0:02:04]}  O-O {[%clk 0:02:47]} 9. cxd5 {[%clk 0:02:04]}  Qxd5 {[%clk 0:02:43]} 10. Nc3 {[%clk 0:02:03]}  Qxd1 {[%clk 0:02:42]} 11. Rxd1 {[%clk 0:02:04]}  Bd7 {[%clk 0:02:36]} 12. Bg5 {[%clk 0:01:54]}  Rfd8 {[%clk 0:02:35]} 13. Rac1 {[%clk 0:01:49]}  Be8 {[%clk 0:02:28]} 14. a3 {[%clk 0:01:31]}  Rxd1+ {[%clk 0:02:19]} 15. Rxd1 {[%clk 0:01:28]}  Be7 {[%clk 0:02:05]} 16. Nd4 {[%clk 0:01:18]}  Nxd4 {[%clk 0:01:52]} 17. Rxd4 {[%clk 0:01:19]}  Bc6 {[%clk 0:01:49]} 18. Bxc6 {[%clk 0:01:17]}  bxc6 {[%clk 0:01:49]} 19. Rc4 {[%clk 0:01:16]}  Rc8 {[%clk 0:01:38]} 20. Be3 {[%clk 0:01:16]}  a6 {[%clk 0:01:37]} 21. Bc5 {[%clk 0:01:14]}  Nd5 {[%clk 0:01:26]} 22. Bxe7 {[%clk 0:01:10]}  Nxe7 {[%clk 0:01:25]} 23. e4 {[%clk 0:01:09]}  Rd8 {[%clk 0:01:11]} 24. Ra4 {[%clk 0:01:06]}  Rd2 {[%clk 0:01:01]} 25. Rxa6 {[%clk 0:00:59]}  g5 {[%clk 0:01:00]} 26. Ra7 {[%clk 0:00:54]}  Ng6 {[%clk 0:00:59]} 27. Rb7 {[%clk 0:00:42]}  g4 {[%clk 0:00:58]} 28. a4 {[%clk 0:00:20]}  Ne5 {[%clk 0:00:58]} 29. a5 {[%clk 0:00:20]}  Nf3+ {[%clk 0:00:56]} 30. Kf1 {[%clk 0:00:16]}  Nxh2+ {[%clk 0:00:54]} 31. Ke1 {[%clk 0:00:14]}  Nf3+ {[%clk 0:00:53]} 32. Kf1 {[%clk 0:00:14]}  Nh2+ {[%clk 0:00:38]} 33. Kg2 {[%clk 0:00:14]}  Nf3 {[%clk 0:00:36]} 34. a6 {[%clk 0:00:15]}  Rc2 {[%clk 0:00:36]} 35. a7 {[%clk 0:00:14]}  Rc1 {[%clk 0:00:32]} 36. a8=Q+ {[%clk 0:00:15]}  Kg7 {[%clk 0:00:30]} 37. Ne2 {[%clk 0:00:15]}  Ne1+ {[%clk 0:00:28]} 38. Kf1 {[%clk 0:00:11]}  Rb1 {[%clk 0:00:26]} 39. Qb8 {[%clk 0:00:10]}  Nf3+ {[%clk 0:00:23]} 40. Nc1 {[%clk 0:00:10]}  Rxc1+ {[%clk 0:00:22]} 41. Ke2 {[%clk 0:00:10]}  Re1+ {[%clk 0:00:16]} 42. Kd3 {[%clk 0:00:10]}  Rd1+ {[%clk 0:00:14]} 43. Ke3 {[%clk 0:00:10]}  Re1+ {[%clk 0:00:13]} 44. Kf4 {[%clk 0:00:10]}  h5 {[%clk 0:00:13]} 45. Qc7 {[%clk 0:00:07]}  Kf6 {[%clk 0:00:12]} 46. Qxf7# {[%clk 0:00:07]} 1-0


[Site "https://www.chess.com"]

[Event "Titled Tuesday Blitz July 26 Late 2022"]
[White "Clawitter, Craig"]
[Black "Winkels, Marcel"]
[WhiteFideId "2023105"]
[BlackFideId "1003887"]
[WhiteElo "2193"]
[BlackElo "1900"]
[Result "1-0"]
[Round "11"]
[TimeControl "180+1"]
[Date "2022.07.27"]
[WhiteClock "0:00:16"]
[BlackClock "0:00:22"]

1. e4 {[%clk 0:03:00]}  c5 {[%clk 0:02:58]} 2. Nf3 {[%clk 0:03:01]}  d6 {[%clk 0:02:58]} 3. d4 {[%clk 0:03:01]}  cxd4 {[%clk 0:02:58]} 4. Nxd4 {[%clk 0:03:02]}  Nf6 {[%clk 0:02:58]} 5. Nc3 {[%clk 0:03:03]}  a6 {[%clk 0:02:58]} 6. Be3 {[%clk 0:03:03]}  e5 {[%clk 0:02:58]} 7. Nb3 {[%clk 0:03:04]}  Be7 {[%clk 0:02:56]} 8. f3 {[%clk 0:03:04]}  Be6 {[%clk 0:02:55]} 9. Qd2 {[%clk 0:03:01]}  h5 {[%clk 0:02:54]} 10. Nd5 {[%clk 0:03:00]}  Nxd5 {[%clk 0:02:53]} 11. exd5 {[%clk 0:03:01]}  Bf5 {[%clk 0:02:53]} 12. c4 {[%clk 0:02:54]}  Nd7 {[%clk 0:02:46]} 13. Na5 {[%clk 0:02:50]}  Qc7 {[%clk 0:02:42]} 14. b4 {[%clk 0:02:38]}  O-O {[%clk 0:02:37]} 15. Be2 {[%clk 0:02:37]}  Bh4+ {[%clk 0:02:27]} 16. g3 {[%clk 0:02:35]}  Bf6 {[%clk 0:02:25]} 17. O-O {[%clk 0:02:31]}  e4 {[%clk 0:02:22]} 18. Rac1 {[%clk 0:02:17]}  exf3 {[%clk 0:02:20]} 19. Bxf3 {[%clk 0:02:11]}  Bg4 {[%clk 0:02:09]} 20. Bg2 {[%clk 0:01:49]}  Rfe8 {[%clk 0:01:55]} 21. c5 {[%clk 0:01:42]}  dxc5 {[%clk 0:01:48]} 22. d6 {[%clk 0:01:12]}  Qd8 {[%clk 0:01:26]} 23. Nxb7 {[%clk 0:01:00]}  Qb8 {[%clk 0:01:16]} 24. bxc5 {[%clk 0:00:58]}  Ra7 {[%clk 0:01:03]} 25. c6 {[%clk 0:00:55]}  Rxb7 {[%clk 0:01:01]} 26. cxb7 {[%clk 0:00:44]}  Ne5 {[%clk 0:00:59]} 27. Bb6 {[%clk 0:00:27]}  Be6 {[%clk 0:00:46]} 28. Bc7 {[%clk 0:00:24]}  Qa7+ {[%clk 0:00:46]} 29. Qf2 {[%clk 0:00:20]}  Qxf2+ {[%clk 0:00:28]} 30. Rxf2 {[%clk 0:00:20]}  Nd7 {[%clk 0:00:28]} 31. Bc6 {[%clk 0:00:20]}  Bd4 {[%clk 0:00:27]} 32. Bxd7 {[%clk 0:00:19]}  Bxf2+ {[%clk 0:00:25]} 33. Kxf2 {[%clk 0:00:19]}  Bxd7 {[%clk 0:00:25]} 34. b8=Q {[%clk 0:00:19]}  Rxb8 {[%clk 0:00:24]} 35. Bxb8 {[%clk 0:00:19]}  Kh7 {[%clk 0:00:25]} 36. Rc7 {[%clk 0:00:19]}  Bb5 {[%clk 0:00:22]} 37. Rxf7 {[%clk 0:00:17]}  Bd7 {[%clk 0:00:23]} 38. Rxd7 {[%clk 0:00:17]}  Kg6 {[%clk 0:00:22]} 39. Ra7 {[%clk 0:00:16]}  Kf5 {[%clk 0:00:23]} 40. d7 {[%clk 0:00:16]}  Ke6 {[%clk 0:00:23]} 41. d8=Q {[%clk 0:00:17]}  Kf5 {[%clk 0:00:22]} 42. Qd6 {[%clk 0:00:16]} 1-0


[Site "https://www.chess.com"]

[Event "Titled Tuesday Blitz July 26 Late 2022"]
[White "D`Arruda, Ricardo D."]
[Black "Jin, Ashton"]
[WhiteFideId "100692"]
[BlackFideId "30931908"]
[WhiteElo "2417"]
[BlackElo "2510"]
[Result "1/2-1/2"]
[Round "11"]
[TimeControl "180+1"]
[Date "2022.07.27"]
[WhiteClock "0:00:34"]
[BlackClock "0:00:19"]

1. d4 {[%clk 0:01:44]}  Nf6 {[%clk 0:02:59]} 2. Nf3 {[%clk 0:01:45]}  g6 {[%clk 0:02:59]} 3. Nc3 {[%clk 0:01:46]}  d5 {[%clk 0:02:59]} 4. Bg5 {[%clk 0:01:45]}  Bg7 {[%clk 0:02:58]} 5. Bxf6 {[%clk 0:01:45]}  Bxf6 {[%clk 0:02:59]} 6. e4 {[%clk 0:01:46]}  dxe4 {[%clk 0:02:57]} 7. Nxe4 {[%clk 0:01:47]}  Bg7 {[%clk 0:02:58]} 8. Bc4 {[%clk 0:01:47]}  O-O {[%clk 0:02:57]} 9. O-O {[%clk 0:01:48]}  b6 {[%clk 0:02:51]} 10. Qe2 {[%clk 0:01:47]}  Bb7 {[%clk 0:02:51]} 11. Rad1 {[%clk 0:01:47]}  Nd7 {[%clk 0:02:50]} 12. Rfe1 {[%clk 0:01:48]}  Nf6 {[%clk 0:02:40]} 13. Nxf6+ {[%clk 0:01:46]}  Bxf6 {[%clk 0:02:40]} 14. Ne5 {[%clk 0:01:45]}  e6 {[%clk 0:02:34]} 15. c3 {[%clk 0:01:44]}  Qe7 {[%clk 0:02:31]} 16. Ba6 {[%clk 0:01:43]}  Bc8 {[%clk 0:02:10]} 17. Bxc8 {[%clk 0:01:24]}  Raxc8 {[%clk 0:02:09]} 18. Qa6 {[%clk 0:01:15]}  c6 {[%clk 0:01:51]} 19. g3 {[%clk 0:01:14]}  Rfd8 {[%clk 0:01:50]} 20. Qa4 {[%clk 0:01:13]}  c5 {[%clk 0:01:41]} 21. dxc5 {[%clk 0:01:11]}  Rxc5 {[%clk 0:01:37]} 22. Rxd8+ {[%clk 0:01:06]}  Qxd8 {[%clk 0:01:38]} 23. Nd7 {[%clk 0:01:05]}  Rc7 {[%clk 0:01:28]} 24. Nxf6+ {[%clk 0:01:04]}  Qxf6 {[%clk 0:01:29]} 25. Rd1 {[%clk 0:01:02]}  Kg7 {[%clk 0:01:24]} 26. Qe8 {[%clk 0:01:01]}  Qe7 {[%clk 0:01:21]} 27. Qa8 {[%clk 0:01:00]}  Rd7 {[%clk 0:01:17]} 28. Rxd7 {[%clk 0:01:00]}  Qxd7 {[%clk 0:01:18]} 29. Kg2 {[%clk 0:01:00]}  a5 {[%clk 0:01:11]} 30. h4 {[%clk 0:01:00]}  h5 {[%clk 0:01:11]} 31. Qe4 {[%clk 0:00:58]}  Qd2 {[%clk 0:01:07]} 32. Qd4+ {[%clk 0:00:52]}  Qxd4 {[%clk 0:01:07]} 33. cxd4 {[%clk 0:00:52]}  Kf6 {[%clk 0:01:02]} 34. Kf3 {[%clk 0:00:53]}  Ke7 {[%clk 0:00:55]} 35. Ke4 {[%clk 0:00:50]}  Kd6 {[%clk 0:00:55]} 36. f3 {[%clk 0:00:49]}  b5 {[%clk 0:00:53]} 37. g4 {[%clk 0:00:49]}  f6 {[%clk 0:00:50]} 38. a3 {[%clk 0:00:41]}  Kc6 {[%clk 0:00:32]} 39. gxh5 {[%clk 0:00:32]}  gxh5 {[%clk 0:00:32]} 40. f4 {[%clk 0:00:33]}  b4 {[%clk 0:00:14]} 41. axb4 {[%clk 0:00:28]}  axb4 {[%clk 0:00:15]} 42. f5 {[%clk 0:00:28]}  exf5+ {[%clk 0:00:15]} 43. Kxf5 {[%clk 0:00:29]}  Kd5 {[%clk 0:00:15]} 44. Kxf6 {[%clk 0:00:30]}  Kxd4 {[%clk 0:00:15]} 45. Kg5 {[%clk 0:00:31]}  Kd3 {[%clk 0:00:16]} 46. Kxh5 {[%clk 0:00:31]}  Kc2 {[%clk 0:00:17]} 47. Kg5 {[%clk 0:00:30]}  Kxb2 {[%clk 0:00:18]} 48. h5 {[%clk 0:00:31]}  Ka2 {[%clk 0:00:16]} 49. h6 {[%clk 0:00:32]}  b3 {[%clk 0:00:17]} 50. h7 {[%clk 0:00:32]}  b2 {[%clk 0:00:17]} 51. h8=Q {[%clk 0:00:32]}  b1=Q {[%clk 0:00:18]} 52. Qa8+ {[%clk 0:00:33]}  Kb2 {[%clk 0:00:18]} 53. Qb7+ {[%clk 0:00:33]}  Kc1 {[%clk 0:00:18]} 54. Qxb1+ {[%clk 0:00:34]}  Kxb1 {[%clk 0:00:19]} 1/2-1/2


[Site "https://www.chess.com"]

[Event "Titled Tuesday Blitz July 26 Late 2022"]
[White "De Gleria, Francesco"]
[Black "Toncheva, Nadya"]
[WhiteFideId "4630394"]
[BlackFideId "2924056"]
[WhiteElo "2283"]
[BlackElo "1888"]
[Result "1-0"]
[Round "11"]
[TimeControl "180+1"]
[Date "2022.07.27"]
[WhiteClock "0:00:06"]
[BlackClock "0:00:02"]

1. e4 {[%clk 0:02:59]}  c5 {[%clk 0:03:00]} 2. Nf3 {[%clk 0:02:59]}  Nc6 {[%clk 0:03:01]} 3. Bb5 {[%clk 0:02:59]}  e6 {[%clk 0:03:01]} 4. Bxc6 {[%clk 0:02:56]}  bxc6 {[%clk 0:03:01]} 5. O-O {[%clk 0:02:54]}  d6 {[%clk 0:03:01]} 6. c3 {[%clk 0:02:47]}  e5 {[%clk 0:03:01]} 7. d4 {[%clk 0:02:47]}  cxd4 {[%clk 0:02:53]} 8. cxd4 {[%clk 0:02:47]}  exd4 {[%clk 0:02:36]} 9. Nxd4 {[%clk 0:02:44]}  Qb6 {[%clk 0:02:35]} 10. Na3 {[%clk 0:02:05]}  Nf6 {[%clk 0:02:33]} 11. Nc4 {[%clk 0:01:59]}  Qc7 {[%clk 0:02:15]} 12. Bf4 {[%clk 0:01:40]}  Be7 {[%clk 0:01:53]} 13. Nxd6+ {[%clk 0:01:22]}  Bxd6 {[%clk 0:01:45]} 14. Bxd6 {[%clk 0:01:22]}  Qxd6 {[%clk 0:01:44]} 15. e5 {[%clk 0:01:22]}  Qd5 {[%clk 0:00:55]} 16. exf6 {[%clk 0:01:21]}  O-O {[%clk 0:00:53]} 17. fxg7 {[%clk 0:01:14]}  Rd8 {[%clk 0:00:52]} 18. Nxc6 {[%clk 0:01:14]}  Qxd1 {[%clk 0:00:36]} 19. Rfxd1 {[%clk 0:01:11]}  Rxd1+ {[%clk 0:00:31]} 20. Rxd1 {[%clk 0:01:10]}  Be6 {[%clk 0:00:28]} 21. b3 {[%clk 0:00:42]}  Kxg7 {[%clk 0:00:28]} 22. f3 {[%clk 0:00:36]}  Rc8 {[%clk 0:00:24]} 23. Nd4 {[%clk 0:00:35]}  Kf6 {[%clk 0:00:14]} 24. Kf2 {[%clk 0:00:32]}  Bd5 {[%clk 0:00:09]} 25. Ke3 {[%clk 0:00:28]}  Ke5 {[%clk 0:00:09]} 26. f4+ {[%clk 0:00:27]}  Kf6 {[%clk 0:00:09]} 27. g4 {[%clk 0:00:24]}  Rc3+ {[%clk 0:00:08]} 28. Rd3 {[%clk 0:00:24]}  Rc1 {[%clk 0:00:07]} 29. g5+ {[%clk 0:00:23]}  Kg6 {[%clk 0:00:07]} 30. Ne2 {[%clk 0:00:18]}  Rh1 {[%clk 0:00:07]} 31. Rxd5 {[%clk 0:00:17]}  Rxh2 {[%clk 0:00:06]} 32. Rd6+ {[%clk 0:00:17]}  Kf5 {[%clk 0:00:05]} 33. Rf6+ {[%clk 0:00:16]}  Kg4 {[%clk 0:00:06]} 34. Rxf7 {[%clk 0:00:16]}  Rh3+ {[%clk 0:00:06]} 35. Ke4 {[%clk 0:00:15]}  Rh2 {[%clk 0:00:06]} 36. Nd4 {[%clk 0:00:15]}  Rxa2 {[%clk 0:00:06]} 37. Rxh7 {[%clk 0:00:14]}  a5 {[%clk 0:00:06]} 38. g6 {[%clk 0:00:13]}  a4 {[%clk 0:00:05]} 39. bxa4 {[%clk 0:00:13]}  Re2+ {[%clk 0:00:05]} 40. Kd5 {[%clk 0:00:13]}  Rd2 {[%clk 0:00:03]} 41. g7 {[%clk 0:00:12]}  Kxf4 {[%clk 0:00:03]} 42. g8=Q {[%clk 0:00:08]}  Rg2 {[%clk 0:00:02]} 43. Rf7+ {[%clk 0:00:08]}  Ke3 {[%clk 0:00:02]} 44. Qxg2 {[%clk 0:00:06]} 1-0


[Site "https://www.chess.com"]

[Event "Titled Tuesday Blitz July 26 Late 2022"]
[White "Ernst, Sipke"]
[Black "Rastbod, Ali"]
[WhiteFideId "1004689"]
[BlackFideId "12567477"]
[WhiteElo "2436"]
[BlackElo "2135"]
[Result "0-1"]
[Round "11"]
[TimeControl "180+1"]
[Date "2022.07.26"]
[WhiteClock "0:01:37"]
[BlackClock "0:01:43"]

1. d4 {[%clk 0:03:00]}  d5 {[%clk 0:02:56]} 2. c4 {[%clk 0:03:00]}  e6 {[%clk 0:02:56]} 3. Nf3 {[%clk 0:03:00]}  Nf6 {[%clk 0:02:56]} 4. g3 {[%clk 0:02:59]}  Be7 {[%clk 0:02:53]} 5. Bg2 {[%clk 0:02:59]}  O-O {[%clk 0:02:54]} 6. Nc3 {[%clk 0:02:57]}  dxc4 {[%clk 0:02:54]} 7. Ne5 {[%clk 0:02:57]}  c5 {[%clk 0:02:54]} 8. dxc5 {[%clk 0:02:56]}  Qxd1+ {[%clk 0:02:54]} 9. Nxd1 {[%clk 0:02:57]}  Bxc5 {[%clk 0:02:54]} 10. Nxc4 {[%clk 0:02:57]}  Nc6 {[%clk 0:02:50]} 11. Be3 {[%clk 0:02:54]}  Bxe3 {[%clk 0:02:49]} 12. Ndxe3 {[%clk 0:02:53]}  Bd7 {[%clk 0:02:49]} 13. O-O-O {[%clk 0:02:52]}  Rfd8 {[%clk 0:02:47]} 14. Kb1 {[%clk 0:02:44]}  Kf8 {[%clk 0:02:47]} 15. Nd6 {[%clk 0:02:43]}  Bc8 {[%clk 0:02:21]} 16. Bxc6 {[%clk 0:02:40]}  bxc6 {[%clk 0:02:20]} 17. Nec4 {[%clk 0:02:29]}  Ke7 {[%clk 0:02:16]} 18. f3 {[%clk 0:02:22]}  Ba6 {[%clk 0:02:16]} 19. Ne5 {[%clk 0:02:15]}  Rxd6 {[%clk 0:02:10]} 20. Rxd6 {[%clk 0:02:14]}  Kxd6 {[%clk 0:02:10]} 21. Nxf7+ {[%clk 0:02:15]}  Ke7 {[%clk 0:02:10]} 22. Ne5 {[%clk 0:02:15]}  Bxe2 {[%clk 0:02:06]} 23. Re1 {[%clk 0:02:15]}  Bb5 {[%clk 0:02:04]} 24. b3 {[%clk 0:02:15]}  Rc8 {[%clk 0:02:04]} 25. Kb2 {[%clk 0:02:13]}  Nd5 {[%clk 0:02:03]} 26. f4 {[%clk 0:02:09]}  g6 {[%clk 0:02:02]} 27. Nf3 {[%clk 0:02:09]}  Nb4 {[%clk 0:02:00]} 28. Kb1 {[%clk 0:02:08]}  Bd3+ {[%clk 0:01:59]} 29. Kc1 {[%clk 0:02:08]}  Bf5 {[%clk 0:01:59]} 30. Kd2 {[%clk 0:02:05]}  Rd8+ {[%clk 0:01:59]} 31. Kc3 {[%clk 0:02:04]}  Rd3+ {[%clk 0:01:55]} 32. Kxb4 {[%clk 0:02:04]}  Rxf3 {[%clk 0:01:56]} 33. Rc1 {[%clk 0:02:02]}  Kd6 {[%clk 0:01:55]} 34. Rd1+ {[%clk 0:02:02]}  Rd3 {[%clk 0:01:55]} 35. Rg1 {[%clk 0:02:01]}  Rd2 {[%clk 0:01:55]} 36. g4 {[%clk 0:02:02]}  Be4 {[%clk 0:01:55]} 37. a4 {[%clk 0:01:58]}  c5+ {[%clk 0:01:54]} 38. Kb5 {[%clk 0:01:56]}  Rb2 {[%clk 0:01:54]} 39. Re1 {[%clk 0:01:55]}  Rxb3+ {[%clk 0:01:53]} 40. Ka6 {[%clk 0:01:55]}  Bd3+ {[%clk 0:01:52]} 41. Kxa7 {[%clk 0:01:55]}  Ra3 {[%clk 0:01:52]} 42. Kb6 {[%clk 0:01:51]}  Rxa4 {[%clk 0:01:51]} 43. Re3 {[%clk 0:01:52]}  c4 {[%clk 0:01:50]} 44. h4 {[%clk 0:01:44]}  Rb4+ {[%clk 0:01:48]} 45. Ka5 {[%clk 0:01:43]}  Rb1 {[%clk 0:01:46]} 46. Rh3 {[%clk 0:01:39]}  Be4 {[%clk 0:01:43]} 47. h5 {[%clk 0:01:37]}  Kc5 {[%clk 0:01:43]} 0-1


[Site "https://www.chess.com"]

[Event "Titled Tuesday Blitz July 26 Late 2022"]
[White "Grischuk, Alexander"]
[Black "Jacobson, Brandon"]
[WhiteFideId "4126025"]
[BlackFideId "30901561"]
[WhiteElo "2762"]
[BlackElo "2362"]
[Result "1-0"]
[Round "11"]
[TimeControl "180+1"]
[Date "2022.07.26"]
[WhiteClock "0:00:07"]
[BlackClock "0:00:01"]

1. d4 {[%clk 0:03:00]}  Nf6 {[%clk 0:03:00]} 2. c4 {[%clk 0:03:01]}  e6 {[%clk 0:02:59]} 3. Nc3 {[%clk 0:03:01]}  d5 {[%clk 0:03:00]} 4. cxd5 {[%clk 0:03:00]}  exd5 {[%clk 0:03:01]} 5. Bg5 {[%clk 0:03:01]}  c6 {[%clk 0:03:01]} 6. Qc2 {[%clk 0:03:01]}  h6 {[%clk 0:03:01]} 7. Bh4 {[%clk 0:03:01]}  Be7 {[%clk 0:03:01]} 8. e3 {[%clk 0:03:01]}  O-O {[%clk 0:03:02]} 9. Bd3 {[%clk 0:03:01]}  Re8 {[%clk 0:03:02]} 10. Nge2 {[%clk 0:02:54]}  a5 {[%clk 0:03:02]} 11. O-O {[%clk 0:02:51]}  Na6 {[%clk 0:03:03]} 12. a3 {[%clk 0:02:51]}  Nc7 {[%clk 0:03:03]} 13. f3 {[%clk 0:02:33]}  Ne6 {[%clk 0:03:04]} 14. Rad1 {[%clk 0:02:30]}  b5 {[%clk 0:03:02]} 15. Kh1 {[%clk 0:02:22]}  Ba6 {[%clk 0:02:58]} 16. Bf5 {[%clk 0:02:07]}  b4 {[%clk 0:02:43]} 17. Na4 {[%clk 0:02:04]}  bxa3 {[%clk 0:02:20]} 18. Bxe6 {[%clk 0:01:50]}  fxe6 {[%clk 0:02:21]} 19. bxa3 {[%clk 0:01:50]}  Bxa3 {[%clk 0:02:21]} 20. Rf2 {[%clk 0:01:44]}  Bc4 {[%clk 0:01:57]} 21. Nf4 {[%clk 0:01:31]}  Ra7 {[%clk 0:01:18]} 22. Qg6 {[%clk 0:01:24]}  Rf7 {[%clk 0:01:02]} 23. Ra1 {[%clk 0:01:10]}  Bf8 {[%clk 0:00:55]} 24. Nh5 {[%clk 0:00:59]}  Be7 {[%clk 0:00:54]} 25. Bxf6 {[%clk 0:00:56]}  Bxf6 {[%clk 0:00:53]} 26. Nc5 {[%clk 0:00:55]}  e5 {[%clk 0:00:41]} 27. Rb2 {[%clk 0:00:42]}  exd4 {[%clk 0:00:27]} 28. Rb7 {[%clk 0:00:39]}  Ree7 {[%clk 0:00:13]} 29. Ne6 {[%clk 0:00:33]}  Bd3 {[%clk 0:00:04]} 30. Nxf6+ {[%clk 0:00:19]}  Rxf6 {[%clk 0:00:04]} 31. Nxd8 {[%clk 0:00:20]}  Rxg6 {[%clk 0:00:02]} 32. Rxe7 {[%clk 0:00:20]}  dxe3 {[%clk 0:00:02]} 33. Rxe3 {[%clk 0:00:20]}  Bc4 {[%clk 0:00:01]} 34. Re6 {[%clk 0:00:14]}  Rg5 {[%clk 0:00:01]} 35. Nxc6 {[%clk 0:00:09]}  d4 {[%clk 0:00:02]} 36. Re5 {[%clk 0:00:08]}  Rg6 {[%clk 0:00:01]} 37. Ne7+ {[%clk 0:00:07]} 1-0


[Site "https://www.chess.com"]

[Event "Titled Tuesday Blitz July 26 Late 2022"]
[White "Howell, David W L"]
[Black "Andreikin, Dmitry"]
[WhiteFideId "410608"]
[BlackFideId "4158814"]
[WhiteElo "2559"]
[BlackElo "2736"]
[Result "1/2-1/2"]
[Round "11"]
[TimeControl "180+1"]
[Date "2022.07.26"]
[WhiteClock "0:00:18"]
[BlackClock "0:00:26"]

1. e4 {[%clk 0:03:00]}  c5 {[%clk 0:02:59]} 2. Nf3 {[%clk 0:03:00]}  e6 {[%clk 0:03:00]} 3. b3 {[%clk 0:02:58]}  b6 {[%clk 0:02:59]} 4. Bb2 {[%clk 0:02:56]}  Bb7 {[%clk 0:03:00]} 5. Nc3 {[%clk 0:02:56]}  Nf6 {[%clk 0:03:00]} 6. Qe2 {[%clk 0:02:54]}  Nc6 {[%clk 0:02:56]} 7. O-O-O {[%clk 0:02:42]}  Be7 {[%clk 0:02:53]} 8. Kb1 {[%clk 0:02:37]}  d6 {[%clk 0:02:40]} 9. d4 {[%clk 0:02:34]}  cxd4 {[%clk 0:02:38]} 10. Nxd4 {[%clk 0:02:35]}  Rc8 {[%clk 0:02:33]} 11. g4 {[%clk 0:02:29]}  Nxd4 {[%clk 0:02:03]} 12. Rxd4 {[%clk 0:02:30]}  e5 {[%clk 0:02:03]} 13. Rc4 {[%clk 0:02:20]}  Rxc4 {[%clk 0:01:50]} 14. Qxc4 {[%clk 0:02:21]}  O-O {[%clk 0:01:50]} 15. f3 {[%clk 0:02:03]}  d5 {[%clk 0:01:45]} 16. exd5 {[%clk 0:02:03]}  Nxd5 {[%clk 0:01:44]} 17. Nxd5 {[%clk 0:02:02]}  Bxd5 {[%clk 0:01:42]} 18. Qd3 {[%clk 0:01:55]}  f6 {[%clk 0:01:14]} 19. Be2 {[%clk 0:01:51]}  Qa8 {[%clk 0:01:08]} 20. Rd1 {[%clk 0:01:47]}  Rd8 {[%clk 0:01:07]} 21. Qe3 {[%clk 0:01:31]}  Bf7 {[%clk 0:01:02]} 22. Rxd8+ {[%clk 0:01:23]}  Qxd8 {[%clk 0:01:03]} 23. h4 {[%clk 0:01:21]}  Bc5 {[%clk 0:00:59]} 24. Qc1 {[%clk 0:01:15]}  h6 {[%clk 0:00:50]} 25. h5 {[%clk 0:01:14]}  a5 {[%clk 0:00:45]} 26. a4 {[%clk 0:01:13]}  Qd6 {[%clk 0:00:41]} 27. Qf1 {[%clk 0:01:07]}  Kf8 {[%clk 0:00:39]} 28. Bd3 {[%clk 0:01:02]}  Bd4 {[%clk 0:00:35]} 29. Be4 {[%clk 0:00:54]}  Bxb2 {[%clk 0:00:34]} 30. Kxb2 {[%clk 0:00:55]}  Qd4+ {[%clk 0:00:34]} 31. Kb1 {[%clk 0:00:51]}  Bd5 {[%clk 0:00:34]} 32. Bxd5 {[%clk 0:00:38]}  Qxd5 {[%clk 0:00:35]} 33. Qe2 {[%clk 0:00:38]}  Qd4 {[%clk 0:00:32]} 34. Ka2 {[%clk 0:00:32]}  Ke7 {[%clk 0:00:31]} 35. Qa6 {[%clk 0:00:28]}  Qf2 {[%clk 0:00:28]} 36. Qb7+ {[%clk 0:00:22]}  Kf8 {[%clk 0:00:27]} 37. Qc8+ {[%clk 0:00:18]}  Kf7 {[%clk 0:00:25]} 38. Qc4+ {[%clk 0:00:18]}  Kf8 {[%clk 0:00:25]} 39. Qc8+ {[%clk 0:00:18]}  Kf7 {[%clk 0:00:25]} 40. Qc4+ {[%clk 0:00:18]}  Kf8 {[%clk 0:00:26]} 41. Qc8+ {[%clk 0:00:18]} 1/2-1/2


[Site "https://www.chess.com"]

[Event "Titled Tuesday Blitz July 26 Late 2022"]
[White "Jimenez, Joaquin"]
[Black "Gonzalez Vega, Alejandro"]
[WhiteFideId "109860"]
[BlackFideId "3510042"]
[WhiteElo "2163"]
[BlackElo "2246"]
[Result "1-0"]
[Round "11"]
[TimeControl "180+1"]
[Date "2022.07.27"]
[WhiteClock "0:00:19"]
[BlackClock "0:00:09"]

1. e4 {[%clk 0:03:00]}  c5 {[%clk 0:02:56]} 2. Nf3 {[%clk 0:02:58]}  a6 {[%clk 0:02:55]} 3. b4 {[%clk 0:02:54]}  cxb4 {[%clk 0:02:51]} 4. a3 {[%clk 0:02:53]}  d5 {[%clk 0:02:52]} 5. exd5 {[%clk 0:02:51]}  Nf6 {[%clk 0:02:51]} 6. axb4 {[%clk 0:02:50]}  Nxd5 {[%clk 0:02:49]} 7. b5 {[%clk 0:02:50]}  e6 {[%clk 0:02:42]} 8. bxa6 {[%clk 0:02:49]}  Nxa6 {[%clk 0:02:41]} 9. c4 {[%clk 0:02:42]}  Nf6 {[%clk 0:02:30]} 10. d4 {[%clk 0:02:42]}  Bd6 {[%clk 0:02:21]} 11. Bd3 {[%clk 0:02:40]}  O-O {[%clk 0:02:20]} 12. O-O {[%clk 0:02:40]}  Bd7 {[%clk 0:02:17]} 13. c5 {[%clk 0:02:37]}  Be7 {[%clk 0:02:15]} 14. Bd2 {[%clk 0:02:36]}  Nc7 {[%clk 0:02:07]} 15. Rxa8 {[%clk 0:02:34]}  Qxa8 {[%clk 0:02:07]} 16. Nc3 {[%clk 0:02:34]}  Ncd5 {[%clk 0:02:06]} 17. Nxd5 {[%clk 0:02:33]}  Nxd5 {[%clk 0:02:04]} 18. Qe2 {[%clk 0:02:33]}  Bf6 {[%clk 0:02:03]} 19. Ne5 {[%clk 0:02:31]}  Bc6 {[%clk 0:01:52]} 20. Qe4 {[%clk 0:02:24]}  g6 {[%clk 0:01:52]} 21. Bh6 {[%clk 0:02:19]}  Re8 {[%clk 0:01:43]} 22. Qf3 {[%clk 0:02:17]}  Qd8 {[%clk 0:01:39]} 23. Be4 {[%clk 0:02:12]}  Qe7 {[%clk 0:01:20]} 24. g3 {[%clk 0:02:06]}  Bg7 {[%clk 0:01:20]} 25. Bxg7 {[%clk 0:02:02]}  Kxg7 {[%clk 0:01:20]} 26. Nxc6 {[%clk 0:02:01]}  bxc6 {[%clk 0:01:19]} 27. Re1 {[%clk 0:01:53]}  Qd8 {[%clk 0:01:01]} 28. Qb3 {[%clk 0:01:39]}  Re7 {[%clk 0:00:48]} 29. Qa4 {[%clk 0:01:27]}  Qd7 {[%clk 0:00:32]} 30. h4 {[%clk 0:01:22]}  h5 {[%clk 0:00:30]} 31. Bg2 {[%clk 0:01:12]}  Re8 {[%clk 0:00:20]} 32. Qc2 {[%clk 0:01:07]}  Rc8 {[%clk 0:00:19]} 33. Qe4 {[%clk 0:01:07]}  Qc7 {[%clk 0:00:18]} 34. Rb1 {[%clk 0:01:02]}  Rb8 {[%clk 0:00:17]} 35. Re1 {[%clk 0:00:59]}  Rb4 {[%clk 0:00:16]} 36. Ra1 {[%clk 0:00:39]}  Ne7 {[%clk 0:00:12]} 37. Ra8 {[%clk 0:00:34]}  Qd7 {[%clk 0:00:11]} 38. Qe5+ {[%clk 0:00:33]}  f6 {[%clk 0:00:12]} 39. Qd6 {[%clk 0:00:29]}  Rxd4 {[%clk 0:00:11]} 40. Qb8 {[%clk 0:00:20]}  f5 {[%clk 0:00:09]} 41. Qh8+ {[%clk 0:00:19]}  Kf7 {[%clk 0:00:09]} 42. Rf8# {[%clk 0:00:19]} 1-0


[Site "https://www.chess.com"]